[Event "Titled Tuesday Blitz July 20 2021"]
[White "Lagunow, Raphael"]
[Black "Narayanan.S.L"]
[WhiteFideId "24652644"]
[BlackFideId "5058422"]
[WhiteElo "2400"]
[BlackElo "2617"]
[Result "1-0"]
[Round "01"]
[TimeControl "180+1"]
[Date "2021.07.20"]
[WhiteClock "0:00:10"]
[BlackClock "0:00:13"]

1. e4 {[%clk 0:02:56]}  c5 {[%clk 0:02:58]} 2. Nf3 {[%clk 0:02:55]}  b6 {[%clk 0:02:59]} 3. d4 {[%clk 0:02:54]}  cxd4 {[%clk 0:03:00]} 4. Nxd4 {[%clk 0:02:55]}  Bb7 {[%clk 0:02:59]} 5. Nc3 {[%clk 0:02:55]}  a6 {[%clk 0:02:59]} 6. Bd3 {[%clk 0:02:47]}  e6 {[%clk 0:02:59]} 7. O-O {[%clk 0:02:47]}  d6 {[%clk 0:02:59]} 8. Qe2 {[%clk 0:02:44]}  Nd7 {[%clk 0:03:00]} 9. f4 {[%clk 0:02:44]}  Qc7 {[%clk 0:02:56]} 10. Kh1 {[%clk 0:02:42]}  Ngf6 {[%clk 0:02:55]} 11. Be3 {[%clk 0:02:40]}  h5 {[%clk 0:02:55]} 12. Rae1 {[%clk 0:02:38]}  h4 {[%clk 0:02:54]} 13. Bc1 {[%clk 0:02:33]}  Be7 {[%clk 0:02:52]} 14. e5 {[%clk 0:02:10]}  h3 {[%clk 0:02:48]} 15. Ne4 {[%clk 0:01:43]}  hxg2+ {[%clk 0:02:34]} 16. Qxg2 {[%clk 0:01:42]}  Nxe4 {[%clk 0:02:34]} 17. Bxe4 {[%clk 0:01:39]}  d5 {[%clk 0:02:34]} 18. Bd3 {[%clk 0:01:25]}  O-O-O {[%clk 0:01:58]} 19. Qxg7 {[%clk 0:01:24]}  Nc5 {[%clk 0:01:32]} 20. Qxf7 {[%clk 0:00:53]}  Rdf8 {[%clk 0:01:30]} 21. Qg7 {[%clk 0:00:48]}  Rfg8 {[%clk 0:01:27]} 22. Qf7 {[%clk 0:00:48]}  Rg4 {[%clk 0:01:05]} 23. Rg1 {[%clk 0:00:39]}  Rgh4 {[%clk 0:01:02]} 24. Rg8+ {[%clk 0:00:38]}  Rxg8 {[%clk 0:00:51]} 25. Qxg8+ {[%clk 0:00:39]}  Qd8 {[%clk 0:00:52]} 26. Rg1 {[%clk 0:00:29]}  Qxg8 {[%clk 0:00:49]} 27. Rxg8+ {[%clk 0:00:30]}  Kd7 {[%clk 0:00:49]} 28. Kg2 {[%clk 0:00:26]}  Nxd3 {[%clk 0:00:47]} 29. cxd3 {[%clk 0:00:26]}  Rh7 {[%clk 0:00:46]} 30. Be3 {[%clk 0:00:24]}  Bc5 {[%clk 0:00:45]} 31. Kg3 {[%clk 0:00:19]}  a5 {[%clk 0:00:43]} 32. h4 {[%clk 0:00:18]}  Ba6 {[%clk 0:00:43]} 33. Rg6 {[%clk 0:00:15]}  Bxd3 {[%clk 0:00:42]} 34. Rxe6 {[%clk 0:00:15]}  Rg7+ {[%clk 0:00:42]} 35. Kf2 {[%clk 0:00:14]}  Be4 {[%clk 0:00:40]} 36. Rf6 {[%clk 0:00:13]}  Rg2+ {[%clk 0:00:40]} 37. Kf1 {[%clk 0:00:13]}  Rxb2 {[%clk 0:00:40]} 38. e6+ {[%clk 0:00:13]}  Ke7 {[%clk 0:00:40]} 39. Rf7+ {[%clk 0:00:12]}  Kd6 {[%clk 0:00:32]} 40. f5 {[%clk 0:00:13]}  Bd3+ {[%clk 0:00:31]} 41. Kg1 {[%clk 0:00:12]}  Rb1+ {[%clk 0:00:14]} 42. Kh2 {[%clk 0:00:11]}  Re1 {[%clk 0:00:15]} 43. Bf4+ {[%clk 0:00:11]}  Re5 {[%clk 0:00:13]} 44. Rd7# {[%clk 0:00:10]} 1-0


[Site "https://www.chess.com"]

[Event "Titled Tuesday Blitz July 20 2021"]
[White "Liyanage, Ranindu Dilshan"]
[Black "Koganov, Mikhail"]
[WhiteFideId "9915834"]
[BlackFideId "2038676"]
[WhiteElo "1839"]
[BlackElo "2093"]
[Result "1-0"]
[Round "01"]
[TimeControl "180+1"]
[Date "2021.07.21"]
[WhiteClock "0:00:53"]
[BlackClock "0:00:06"]

1. e4 {[%clk 0:02:59]}  e5 {[%clk 0:02:59]} 2. Nf3 {[%clk 0:02:59]}  Nc6 {[%clk 0:03:00]} 3. Bc4 {[%clk 0:02:59]}  Nf6 {[%clk 0:02:59]} 4. d3 {[%clk 0:02:59]}  Be7 {[%clk 0:02:59]} 5. O-O {[%clk 0:02:57]}  O-O {[%clk 0:02:59]} 6. Re1 {[%clk 0:02:58]}  a6 {[%clk 0:02:56]} 7. a4 {[%clk 0:02:58]}  d6 {[%clk 0:02:55]} 8. h3 {[%clk 0:02:57]}  Be6 {[%clk 0:02:51]} 9. Nbd2 {[%clk 0:02:56]}  Na5 {[%clk 0:02:47]} 10. Ba2 {[%clk 0:02:47]}  Bxa2 {[%clk 0:02:44]} 11. Rxa2 {[%clk 0:02:48]}  Qd7 {[%clk 0:02:43]} 12. c3 {[%clk 0:02:47]}  b5 {[%clk 0:02:37]} 13. b4 {[%clk 0:02:43]}  Nc6 {[%clk 0:02:36]} 14. Nf1 {[%clk 0:02:34]}  Rfb8 {[%clk 0:02:30]} 15. Ng3 {[%clk 0:02:29]}  g6 {[%clk 0:02:24]} 16. a5 {[%clk 0:02:20]}  Nd8 {[%clk 0:02:20]} 17. d4 {[%clk 0:02:20]}  exd4 {[%clk 0:02:12]} 18. cxd4 {[%clk 0:02:21]}  Bf8 {[%clk 0:02:12]} 19. Rd2 {[%clk 0:02:13]}  Bg7 {[%clk 0:02:10]} 20. Bb2 {[%clk 0:02:06]}  c6 {[%clk 0:01:51]} 21. e5 {[%clk 0:01:58]}  Nd5 {[%clk 0:01:49]} 22. Ne4 {[%clk 0:01:57]}  Nb7 {[%clk 0:01:45]} 23. exd6 {[%clk 0:01:53]}  Nxb4 {[%clk 0:01:38]} 24. Ne5 {[%clk 0:01:53]}  Qd8 {[%clk 0:00:59]} 25. Qb3 {[%clk 0:01:44]}  Nd5 {[%clk 0:00:54]} 26. Nxc6 {[%clk 0:01:43]}  Nxa5 {[%clk 0:00:36]} 27. Qxd5 {[%clk 0:01:42]}  Nxc6 {[%clk 0:00:36]} 28. Qxc6 {[%clk 0:01:43]}  Rb6 {[%clk 0:00:31]} 29. Qd5 {[%clk 0:01:42]}  Rc8 {[%clk 0:00:29]} 30. Ng5 {[%clk 0:01:35]}  Qf6 {[%clk 0:00:19]} 31. d7 {[%clk 0:01:33]}  Rd8 {[%clk 0:00:17]} 32. Re8+ {[%clk 0:01:33]}  Bf8 {[%clk 0:00:14]} 33. Nxf7 {[%clk 0:01:29]}  Rxd7 {[%clk 0:00:07]} 34. Nh6+ {[%clk 0:01:07]}  Kg7 {[%clk 0:00:07]} 35. Qxd7+ {[%clk 0:01:07]}  Kxh6 {[%clk 0:00:07]} 36. Rde2 {[%clk 0:01:01]}  Rd6 {[%clk 0:00:07]} 37. Bc1+ {[%clk 0:01:01]}  g5 {[%clk 0:00:06]} 38. Qg4 {[%clk 0:00:58]}  Rxd4 {[%clk 0:00:06]} 39. Bxg5+ {[%clk 0:00:56]}  Qxg5 {[%clk 0:00:06]} 40. R8e6+ {[%clk 0:00:53]} 1-0


[Site "https://www.chess.com"]

[Event "Titled Tuesday Blitz July 20 2021"]
[White "Lovkov, Roman"]
[Black "Chernov, Mikhail"]
[WhiteFideId "4157389"]
[BlackFideId "24143170"]
[WhiteElo "2387"]
[BlackElo "2244"]
[Result "1-0"]
[Round "01"]
[TimeControl "180+1"]
[Date "2021.07.21"]
[WhiteClock "0:01:04"]
[BlackClock "0:00:50"]

1. e4 {[%clk 0:03:00]}  c5 {[%clk 0:02:59]} 2. d4 {[%clk 0:03:00]}  cxd4 {[%clk 0:02:59]} 3. c3 {[%clk 0:03:01]}  dxc3 {[%clk 0:03:00]} 4. Nxc3 {[%clk 0:03:02]}  Nc6 {[%clk 0:03:01]} 5. Nf3 {[%clk 0:03:02]}  e6 {[%clk 0:03:02]} 6. Bc4 {[%clk 0:03:03]}  Qc7 {[%clk 0:03:02]} 7. Qe2 {[%clk 0:02:55]}  Nf6 {[%clk 0:03:01]} 8. e5 {[%clk 0:02:45]}  Ng4 {[%clk 0:02:57]} 9. Bf4 {[%clk 0:02:46]}  d5 {[%clk 0:02:37]} 10. Bb3 {[%clk 0:02:41]}  Be7 {[%clk 0:02:24]} 11. h3 {[%clk 0:02:32]}  Nh6 {[%clk 0:02:24]} 12. g4 {[%clk 0:02:33]}  O-O {[%clk 0:02:22]} 13. Bg3 {[%clk 0:02:29]}  b6 {[%clk 0:02:07]} 14. Rc1 {[%clk 0:02:23]}  Bb7 {[%clk 0:02:07]} 15. O-O {[%clk 0:02:01]}  a6 {[%clk 0:02:00]} 16. Qe3 {[%clk 0:01:22]}  d4 {[%clk 0:01:51]} 17. Nxd4 {[%clk 0:01:18]}  Nxd4 {[%clk 0:01:52]} 18. Qxd4 {[%clk 0:01:18]}  Qc6 {[%clk 0:01:53]} 19. Nd5 {[%clk 0:01:18]}  Bc5 {[%clk 0:01:16]} 20. Ne7+ {[%clk 0:01:16]}  Bxe7 {[%clk 0:01:17]} 21. Rxc6 {[%clk 0:01:15]}  Bxc6 {[%clk 0:01:18]} 22. Qxb6 {[%clk 0:01:15]}  Rac8 {[%clk 0:01:14]} 23. Rc1 {[%clk 0:01:09]}  Be4 {[%clk 0:01:08]} 24. Rxc8 {[%clk 0:01:08]}  Rxc8 {[%clk 0:01:08]} 25. Bf4 {[%clk 0:01:08]}  g5 {[%clk 0:01:02]} 26. Be3 {[%clk 0:01:05]}  Kg7 {[%clk 0:01:01]} 27. Qxa6 {[%clk 0:01:04]}  Ng8 {[%clk 0:00:50]} 1-0


[Site "https://www.chess.com"]

[Event "Titled Tuesday Blitz July 20 2021"]
[White "Madaminov, Mukhiddin"]
[Black "Onufrienko, Vladislav"]
[WhiteFideId "14210703"]
[BlackFideId "13804332"]
[WhiteElo "1747"]
[BlackElo "1661"]
[Result "1-0"]
[Round "01"]
[TimeControl "180+1"]
[Date "2021.07.21"]
[WhiteClock "0:00:54"]
[BlackClock "0:00:13"]

1. e4 {[%clk 0:03:00]}  Nf6 {[%clk 0:02:51]} 2. e5 {[%clk 0:03:00]}  Nd5 {[%clk 0:02:51]} 3. d4 {[%clk 0:03:01]}  d6 {[%clk 0:02:51]} 4. Nf3 {[%clk 0:03:01]}  dxe5 {[%clk 0:02:51]} 5. Nxe5 {[%clk 0:03:01]}  Nd7 {[%clk 0:02:52]} 6. Nxd7 {[%clk 0:02:58]}  Bxd7 {[%clk 0:02:50]} 7. Bc4 {[%clk 0:02:58]}  e6 {[%clk 0:02:50]} 8. O-O {[%clk 0:02:59]}  Be7 {[%clk 0:02:51]} 9. Nc3 {[%clk 0:02:58]}  Nxc3 {[%clk 0:02:48]} 10. bxc3 {[%clk 0:02:59]}  O-O {[%clk 0:02:49]} 11. Re1 {[%clk 0:02:57]}  Bc6 {[%clk 0:02:49]} 12. Bf4 {[%clk 0:02:58]}  Bd6 {[%clk 0:02:44]} 13. Qg4 {[%clk 0:02:56]}  Bxf4 {[%clk 0:02:38]} 14. Qxf4 {[%clk 0:02:57]}  Qd6 {[%clk 0:02:38]} 15. Qg5 {[%clk 0:02:50]}  h6 {[%clk 0:02:35]} 16. Qh4 {[%clk 0:02:49]}  Rad8 {[%clk 0:02:24]} 17. Re3 {[%clk 0:02:46]}  Bd5 {[%clk 0:01:50]} 18. Bd3 {[%clk 0:02:40]}  f5 {[%clk 0:01:40]} 19. Rg3 {[%clk 0:02:31]}  Kh8 {[%clk 0:01:33]} 20. Re1 {[%clk 0:02:19]}  c5 {[%clk 0:01:29]} 21. c4 {[%clk 0:02:04]}  Bc6 {[%clk 0:01:13]} 22. dxc5 {[%clk 0:02:03]}  Qd7 {[%clk 0:00:56]} 23. Rg6 {[%clk 0:01:51]}  Rde8 {[%clk 0:00:55]} 24. Re5 {[%clk 0:01:39]}  Rf7 {[%clk 0:00:39]} 25. Qf4 {[%clk 0:01:32]}  Kh7 {[%clk 0:00:36]} 26. Qg3 {[%clk 0:01:20]}  Qd4 {[%clk 0:00:34]} 27. h4 {[%clk 0:01:12]}  Kh8 {[%clk 0:00:30]} 28. Qe3 {[%clk 0:01:05]}  Qa1+ {[%clk 0:00:21]} 29. Kh2 {[%clk 0:01:03]}  Rfe7 {[%clk 0:00:16]} 30. Rgxe6 {[%clk 0:00:55]}  Qxe5+ {[%clk 0:00:13]} 31. Qxe5 {[%clk 0:00:53]}  Rxe6 {[%clk 0:00:13]} 32. Qxf5 {[%clk 0:00:54]}  Rf6 {[%clk 0:00:13]} 33. Qh7# {[%clk 0:00:54]} 1-0


[Site "https://www.chess.com"]

[Event "Titled Tuesday Blitz July 20 2021"]
[White "Megaranto, Susanto"]
[Black "Fisabilillah, Ummi"]
[WhiteFideId "7101384"]
[BlackFideId "7104804"]
[WhiteElo "2731"]
[BlackElo "2399"]
[Result "1-0"]
[Round "01"]
[TimeControl "180+1"]
[Date "2021.07.21"]
[WhiteClock "0:00:55"]
[BlackClock "0:00:16"]

1. e4 {[%clk 0:02:56]}  c6 {[%clk 0:02:55]} 2. c4 {[%clk 0:02:54]}  d5 {[%clk 0:02:54]} 3. exd5 {[%clk 0:02:51]}  cxd5 {[%clk 0:02:51]} 4. cxd5 {[%clk 0:02:50]}  Nf6 {[%clk 0:02:40]} 5. Nc3 {[%clk 0:02:48]}  Nxd5 {[%clk 0:02:38]} 6. Nf3 {[%clk 0:02:41]}  Nc6 {[%clk 0:02:32]} 7. Bb5 {[%clk 0:02:37]}  Nxc3 {[%clk 0:02:00]} 8. bxc3 {[%clk 0:02:34]}  Bd7 {[%clk 0:01:58]} 9. d4 {[%clk 0:02:29]}  e6 {[%clk 0:01:54]} 10. O-O {[%clk 0:02:28]}  Be7 {[%clk 0:01:52]} 11. Re1 {[%clk 0:02:26]}  O-O {[%clk 0:01:52]} 12. Bf4 {[%clk 0:02:24]}  Rc8 {[%clk 0:01:50]} 13. Bd3 {[%clk 0:02:18]}  g6 {[%clk 0:01:07]} 14. Qd2 {[%clk 0:02:03]}  Bf6 {[%clk 0:01:03]} 15. h4 {[%clk 0:01:57]}  h5 {[%clk 0:00:57]} 16. Bg5 {[%clk 0:01:42]}  Bxg5 {[%clk 0:00:49]} 17. Nxg5 {[%clk 0:01:36]}  Kg7 {[%clk 0:00:42]} 18. Re3 {[%clk 0:01:27]}  Ne7 {[%clk 0:00:42]} 19. Rg3 {[%clk 0:01:14]}  Bc6 {[%clk 0:00:30]} 20. Qf4 {[%clk 0:01:07]}  Qc7 {[%clk 0:00:27]} 21. Qe3 {[%clk 0:00:59]}  Nd5 {[%clk 0:00:25]} 22. Nxe6+ {[%clk 0:00:57]}  fxe6 {[%clk 0:00:18]} 23. Rxg6+ {[%clk 0:00:55]}  Kh8 {[%clk 0:00:16]} 24. Qh6+ {[%clk 0:00:54]}  Qh7 {[%clk 0:00:16]} 25. Rg8+ {[%clk 0:00:55]} 1-0


[Site "https://www.chess.com"]

[Event "Titled Tuesday Blitz July 20 2021"]
[White "Molina, Roberto Junio Brito"]
[Black "Tomaszewski, Kacper"]
[WhiteFideId "2109450"]
[BlackFideId "1127373"]
[WhiteElo "2746"]
[BlackElo "2405"]
[Result "1-0"]
[Round "01"]
[TimeControl "180+1"]
[Date "2021.07.21"]
[WhiteClock "0:00:08"]
[BlackClock "0:00:06"]

1. d4 {[%clk 0:03:00]}  Nf6 {[%clk 0:02:59]} 2. c4 {[%clk 0:03:01]}  g6 {[%clk 0:02:59]} 3. Nc3 {[%clk 0:03:01]}  d5 {[%clk 0:03:00]} 4. Nf3 {[%clk 0:03:01]}  Bg7 {[%clk 0:03:00]} 5. Qb3 {[%clk 0:03:02]}  dxc4 {[%clk 0:02:58]} 6. Qxc4 {[%clk 0:03:03]}  O-O {[%clk 0:02:58]} 7. e4 {[%clk 0:03:03]}  Nc6 {[%clk 0:02:59]} 8. Be2 {[%clk 0:02:59]}  e5 {[%clk 0:02:59]} 9. d5 {[%clk 0:02:58]}  Nd4 {[%clk 0:02:59]} 10. Nxd4 {[%clk 0:02:57]}  exd4 {[%clk 0:02:59]} 11. Qxd4 {[%clk 0:02:57]}  c6 {[%clk 0:02:59]} 12. Qd1 {[%clk 0:02:54]}  cxd5 {[%clk 0:02:58]} 13. exd5 {[%clk 0:02:54]}  Bf5 {[%clk 0:02:44]} 14. O-O {[%clk 0:02:52]}  Ne4 {[%clk 0:02:44]} 15. Nxe4 {[%clk 0:02:49]}  Bxe4 {[%clk 0:02:45]} 16. Bf3 {[%clk 0:02:50]}  Re8 {[%clk 0:02:41]} 17. Bxe4 {[%clk 0:02:44]}  Rxe4 {[%clk 0:02:40]} 18. Qb3 {[%clk 0:02:45]}  Rd4 {[%clk 0:02:36]} 19. Be3 {[%clk 0:02:39]}  Rxd5 {[%clk 0:02:33]} 20. Rad1 {[%clk 0:02:38]}  Rxd1 {[%clk 0:02:30]} 21. Rxd1 {[%clk 0:02:39]}  Qe7 {[%clk 0:02:25]} 22. g3 {[%clk 0:02:35]}  b6 {[%clk 0:02:17]} 23. Qd5 {[%clk 0:02:32]}  Re8 {[%clk 0:02:13]} 24. b3 {[%clk 0:02:29]}  Bf6 {[%clk 0:02:03]} 25. h4 {[%clk 0:02:28]}  Rd8 {[%clk 0:01:56]} 26. Qf3 {[%clk 0:01:59]}  Rxd1+ {[%clk 0:01:55]} 27. Qxd1 {[%clk 0:02:00]}  Qd8 {[%clk 0:01:49]} 28. Qf3 {[%clk 0:01:58]}  h5 {[%clk 0:01:29]} 29. Qb7 {[%clk 0:01:50]}  Qe7 {[%clk 0:01:24]} 30. Qd5 {[%clk 0:01:37]}  Qd8 {[%clk 0:01:23]} 31. Qc6 {[%clk 0:01:33]}  Kg7 {[%clk 0:01:19]} 32. a4 {[%clk 0:01:18]}  Qe7 {[%clk 0:01:15]} 33. Kg2 {[%clk 0:01:15]}  Be5 {[%clk 0:01:03]} 34. Qe4 {[%clk 0:00:51]}  Bf6 {[%clk 0:01:00]} 35. Kf3 {[%clk 0:00:49]}  Qa3 {[%clk 0:00:45]} 36. Qd3 {[%clk 0:00:44]}  Qe7 {[%clk 0:00:41]} 37. Qd5 {[%clk 0:00:41]}  Be5 {[%clk 0:00:39]} 38. Ke2 {[%clk 0:00:39]}  Bf6 {[%clk 0:00:37]} 39. Kd3 {[%clk 0:00:38]}  Qc7 {[%clk 0:00:34]} 40. Bd4 {[%clk 0:00:35]}  Qc1 {[%clk 0:00:24]} 41. Bxf6+ {[%clk 0:00:35]}  Kxf6 {[%clk 0:00:25]} 42. Qd4+ {[%clk 0:00:33]}  Ke6 {[%clk 0:00:20]} 43. Qc4+ {[%clk 0:00:26]}  Qxc4+ {[%clk 0:00:20]} 44. Kxc4 {[%clk 0:00:27]}  Kd6 {[%clk 0:00:21]} 45. Kb5 {[%clk 0:00:26]}  Kc7 {[%clk 0:00:21]} 46. Ka6 {[%clk 0:00:27]}  Kb8 {[%clk 0:00:22]} 47. b4 {[%clk 0:00:26]}  Ka8 {[%clk 0:00:22]} 48. f3 {[%clk 0:00:22]}  Kb8 {[%clk 0:00:22]} 49. g4 {[%clk 0:00:18]}  Ka8 {[%clk 0:00:19]} 50. gxh5 {[%clk 0:00:18]}  gxh5 {[%clk 0:00:19]} 51. Kb5 {[%clk 0:00:13]}  Kb7 {[%clk 0:00:19]} 52. Kc4 {[%clk 0:00:14]}  Kc6 {[%clk 0:00:20]} 53. Kd4 {[%clk 0:00:14]}  Kd6 {[%clk 0:00:20]} 54. Ke4 {[%clk 0:00:15]}  Ke6 {[%clk 0:00:21]} 55. Kf4 {[%clk 0:00:15]}  Kf6 {[%clk 0:00:18]} 56. Ke4 {[%clk 0:00:15]}  Ke6 {[%clk 0:00:18]} 57. Kf4 {[%clk 0:00:15]}  Kf6 {[%clk 0:00:19]} 58. b5 {[%clk 0:00:15]}  Ke6 {[%clk 0:00:12]} 59. Kg5 {[%clk 0:00:16]}  Ke5 {[%clk 0:00:06]} 60. Kxh5 {[%clk 0:00:06]}  Kf4 {[%clk 0:00:06]} 61. Kh6 {[%clk 0:00:06]}  Kxf3 {[%clk 0:00:06]} 62. Kg5 {[%clk 0:00:06]}  Ke4 {[%clk 0:00:05]} 63. h5 {[%clk 0:00:06]}  f5 {[%clk 0:00:05]} 64. h6 {[%clk 0:00:06]}  f4 {[%clk 0:00:06]} 65. h7 {[%clk 0:00:07]}  f3 {[%clk 0:00:06]} 66. h8=Q {[%clk 0:00:08]} 1-0


[Site "https://www.chess.com"]

[Event "Titled Tuesday Blitz July 20 2021"]
[White "Moskalenko, Alexander"]
[Black "Daianu, Cristian-Clement"]
[WhiteFideId "4155351"]
[BlackFideId "1208926"]
[WhiteElo "2495"]
[BlackElo "2133"]
[Result "1-0"]
[Round "01"]
[TimeControl "180+1"]
[Date "2021.07.20"]
[WhiteClock "0:02:37"]
[BlackClock "0:02:12"]

1. d4 {[%clk 0:02:56]}  Nf6 {[%clk 0:02:58]} 2. Bg5 {[%clk 0:02:52]}  d5 {[%clk 0:02:56]} 3. Bxf6 {[%clk 0:02:50]}  gxf6 {[%clk 0:02:55]} 4. e3 {[%clk 0:02:51]}  c5 {[%clk 0:02:52]} 5. Nf3 {[%clk 0:02:50]}  Nc6 {[%clk 0:02:52]} 6. dxc5 {[%clk 0:02:47]}  e6 {[%clk 0:02:50]} 7. c4 {[%clk 0:02:46]}  Qa5+ {[%clk 0:02:48]} 8. Nc3 {[%clk 0:02:46]}  dxc4 {[%clk 0:02:48]} 9. Nd2 {[%clk 0:02:44]}  Be7 {[%clk 0:02:30]} 10. Nxc4 {[%clk 0:02:42]}  Qxc5 {[%clk 0:02:31]} 11. a3 {[%clk 0:02:43]}  O-O {[%clk 0:02:25]} 12. b4 {[%clk 0:02:41]}  Qg5 {[%clk 0:02:19]} 13. g3 {[%clk 0:02:39]}  Ne5 {[%clk 0:02:12]} 14. f4 {[%clk 0:02:37]} 1-0


[Site "https://www.chess.com"]

[Event "Titled Tuesday Blitz July 20 2021"]
[White "Mujumdar, Sameer"]
[Black "Willow, Jonah B"]
[WhiteFideId "2029707"]
[BlackFideId "438804"]
[WhiteElo "2104"]
[BlackElo "2261"]
[Result "1-0"]
[Round "01"]
[TimeControl "180+1"]
[Date "2021.07.21"]
[WhiteClock "0:00:37"]
[BlackClock "0:00:04"]

1. e4 {[%clk 0:02:59]}  c5 {[%clk 0:02:59]} 2. Nf3 {[%clk 0:02:59]}  g6 {[%clk 0:02:58]} 3. d4 {[%clk 0:02:59]}  cxd4 {[%clk 0:02:59]} 4. c3 {[%clk 0:02:59]}  Nf6 {[%clk 0:02:59]} 5. e5 {[%clk 0:02:59]}  Nd5 {[%clk 0:02:59]} 6. Bc4 {[%clk 0:02:59]}  Nb6 {[%clk 0:02:59]} 7. Bb3 {[%clk 0:02:59]}  Bg7 {[%clk 0:02:59]} 8. cxd4 {[%clk 0:02:59]}  O-O {[%clk 0:02:59]} 9. O-O {[%clk 0:02:58]}  d6 {[%clk 0:03:00]} 10. h3 {[%clk 0:02:41]}  Nc6 {[%clk 0:02:58]} 11. Bf4 {[%clk 0:02:39]}  dxe5 {[%clk 0:02:42]} 12. dxe5 {[%clk 0:02:39]}  Be6 {[%clk 0:02:41]} 13. Nc3 {[%clk 0:02:36]}  Qxd1 {[%clk 0:02:36]} 14. Rfxd1 {[%clk 0:02:29]}  Bxb3 {[%clk 0:02:32]} 15. axb3 {[%clk 0:02:30]}  Rfd8 {[%clk 0:02:30]} 16. Kf1 {[%clk 0:02:23]}  Nd7 {[%clk 0:01:42]} 17. Nd5 {[%clk 0:02:05]}  e6 {[%clk 0:01:14]} 18. Nc7 {[%clk 0:01:49]}  Rac8 {[%clk 0:01:13]} 19. Nb5 {[%clk 0:01:27]}  Ndxe5 {[%clk 0:00:44]} 20. Nxe5 {[%clk 0:01:23]}  Nxe5 {[%clk 0:00:32]} 21. Rxd8+ {[%clk 0:01:17]}  Rxd8 {[%clk 0:00:33]} 22. Rxa7 {[%clk 0:01:16]}  Nd3 {[%clk 0:00:32]} 23. Be3 {[%clk 0:01:11]}  Rb8 {[%clk 0:00:18]} 24. Nd6 {[%clk 0:01:06]}  Nxb2 {[%clk 0:00:10]} 25. Rxb7 {[%clk 0:01:03]}  Rd8 {[%clk 0:00:10]} 26. Nc4 {[%clk 0:01:00]}  Nd1 {[%clk 0:00:08]} 27. Bd2 {[%clk 0:00:52]}  Bc3 {[%clk 0:00:06]} 28. Bxc3 {[%clk 0:00:47]}  Nxc3 {[%clk 0:00:07]} 29. g3 {[%clk 0:00:45]}  Rd1+ {[%clk 0:00:06]} 30. Kg2 {[%clk 0:00:46]}  Rb1 {[%clk 0:00:04]} 31. Ne5 {[%clk 0:00:43]}  f6 {[%clk 0:00:02]} 32. Ng4 {[%clk 0:00:40]}  f5 {[%clk 0:00:01]} 33. Nf6+ {[%clk 0:00:41]}  Kf8 {[%clk 0:00:02]} 34. Nxh7+ {[%clk 0:00:41]}  Ke8 {[%clk 0:00:03]} 35. Nf6+ {[%clk 0:00:41]}  Kd8 {[%clk 0:00:03]} 36. Rd7+ {[%clk 0:00:37]}  Kc8 {[%clk 0:00:03]} 37. Re7 {[%clk 0:00:36]}  Rxb3 {[%clk 0:00:03]} 38. Rxe6 {[%clk 0:00:37]}  Rb2 {[%clk 0:00:04]} 39. Rc6+ {[%clk 0:00:36]}  Kb7 {[%clk 0:00:04]} 40. Rxc3 {[%clk 0:00:37]} 1-0


[Site "https://www.chess.com"]

[Event "Titled Tuesday Blitz July 20 2021"]
[White "Navalgund, Niranjan"]
[Black "Rodriguez Hernandez, Luis Daniel"]
[WhiteFideId "5030854"]
[BlackFideId "3506770"]
[WhiteElo "2290"]
[BlackElo "2133"]
[Result "0-1"]
[Round "01"]
[TimeControl "180+1"]
[Date "2021.07.21"]
[WhiteClock "0:01:04"]
[BlackClock "0:01:10"]

1. d4 {[%clk 0:03:00]}  Nf6 {[%clk 0:02:55]} 2. c4 {[%clk 0:03:00]}  g6 {[%clk 0:02:56]} 3. Nc3 {[%clk 0:02:58]}  Bg7 {[%clk 0:02:56]} 4. e4 {[%clk 0:02:51]}  O-O {[%clk 0:02:57]} 5. Bd3 {[%clk 0:02:47]}  d6 {[%clk 0:02:51]} 6. Nge2 {[%clk 0:02:46]}  c5 {[%clk 0:02:42]} 7. d5 {[%clk 0:02:44]}  e6 {[%clk 0:02:41]} 8. h3 {[%clk 0:02:44]}  exd5 {[%clk 0:02:41]} 9. exd5 {[%clk 0:02:44]}  Na6 {[%clk 0:02:41]} 10. O-O {[%clk 0:02:44]}  Nc7 {[%clk 0:02:42]} 11. Bg5 {[%clk 0:02:40]}  Rb8 {[%clk 0:02:41]} 12. Qd2 {[%clk 0:02:34]}  a6 {[%clk 0:02:39]} 13. a4 {[%clk 0:02:32]}  Bd7 {[%clk 0:02:22]} 14. f4 {[%clk 0:02:22]}  h6 {[%clk 0:02:08]} 15. Bh4 {[%clk 0:02:20]}  Ne4 {[%clk 0:02:07]} 16. Nxe4 {[%clk 0:02:18]}  Qxh4 {[%clk 0:02:08]} 17. Nxd6 {[%clk 0:02:19]}  f5 {[%clk 0:01:59]} 18. Qe3 {[%clk 0:01:53]}  b6 {[%clk 0:01:50]} 19. a5 {[%clk 0:01:50]}  Qf6 {[%clk 0:01:44]} 20. axb6 {[%clk 0:01:39]}  Rxb6 {[%clk 0:01:45]} 21. Qxc5 {[%clk 0:01:38]}  Qxd6 {[%clk 0:01:44]} 22. Qxd6 {[%clk 0:01:39]}  Rxd6 {[%clk 0:01:45]} 23. c5 {[%clk 0:01:39]}  Rxd5 {[%clk 0:01:31]} 24. Bc4 {[%clk 0:01:29]}  Bb5 {[%clk 0:01:31]} 25. Bxd5+ {[%clk 0:01:26]}  Nxd5 {[%clk 0:01:32]} 26. Kf2 {[%clk 0:01:22]}  Bxb2 {[%clk 0:01:23]} 27. Ra2 {[%clk 0:01:21]}  Bxe2 {[%clk 0:01:23]} 28. Kxe2 {[%clk 0:01:04]}  Nc3+ {[%clk 0:01:21]} 29. Kf3 {[%clk 0:01:03]}  Nxa2 {[%clk 0:01:22]} 30. Rf2 {[%clk 0:01:04]}  Rb8 {[%clk 0:01:10]} 0-1


[Site "https://www.chess.com"]